lending/lending_fUSD_20260306
["ID","MTS","AMOUNT","RATE_DAILY","PERIOD"]
[407838259,1772821862204,-151.0,0.00041096,120]
[407838260,1772821862214,-151.0,0.00041096,120]
[407838261,1772821862224,-151.0,0.00041096,120]
[407838262,1772821862235,-151.0,0.00041096,120]
[407838263,1772821862244,-151.0,0.00041096,120]
[407838264,1772821862254,-262.936972,0.00041096,120]
[407838265,1772821862263,-152.377949,0.00041096,120]
[407838266,1772821862274,-151.0,0.00041096,120]
[407838267,1772821862284,-152.377949,0.00041096,120]
[407838268,1772821862293,-151.0,0.00041096,120]
[407838269,1772821862302,-152.377949,0.00041096,120]
[407838270,1772821862312,-151.0,0.00041096,120]
[407838271,1772821862323,-152.377949,0.00041096,120]
[407838272,1772821862332,-151.0,0.00041096,120]
[407838273,1772821862341,-152.377949,0.00041096,120]
[407838274,1772821862351,-151.0,0.00041096,120]
[407838275,1772821862360,-152.377949,0.00041096,120]
[407838276,1772821862369,-196.114449,0.00041096,120]
[407838277,1772821862378,-152.377949,0.00041096,120]
[407838278,1772821862387,-152.377949,0.00041096,120]
[407838279,1772821862397,-152.377949,0.00041096,120]
[407838280,1772821862406,-152.377949,0.00041096,120]
[407838281,1772821862416,-152.377949,0.00041096,120]
[407838282,1772821862425,-152.377949,0.00041096,120]
[407838283,1772821862434,-152.377949,0.00041096,120]
[407838284,1772821862444,-152.377949,0.00041096,120]
[407838285,1772821862453,-152.377949,0.00041096,120]
[407838286,1772821862463,-152.377949,0.00041096,120]
[407838287,1772821862473,-705.462888,0.00041096,120]
[407838288,1772821862483,-705.462888,0.00041096,120]
[407838289,1772821862492,-705.462888,0.00041096,120]
[407838290,1772821862501,-705.462888,0.00041096,120]
[407838291,1772821862510,-705.462888,0.00041096,120]
[407838292,1772821862520,-705.462888,0.00041096,120]
[407838293,1772821862529,-705.462888,0.00041096,120]
[407838294,1772821862538,-705.462888,0.00041096,120]
[407838295,1772821862548,-705.462888,0.00041096,120]
[407838296,1772821862557,-705.462888,0.00041096,120]
[407838297,1772821862568,-705.462888,0.00041096,120]
[407838298,1772821862580,-705.462888,0.00041096,120]
[407838299,1772821862590,-705.462888,0.00041096,120]
[407838300,1772821862599,-705.462888,0.00041096,120]
[407838301,1772821862608,-705.462888,0.00041096,120]
[407838302,1772821862619,-705.462888,0.00041096,120]
[407838303,1772821862628,-151.0,0.00041096,120]
[407838304,1772821862638,-151.0,0.00041096,120]
[407838305,1772821862647,-151.0,0.00041096,120]
[407838306,1772821862660,-151.0,0.00041096,120]
[407838307,1772821862670,-151.0,0.00041096,120]
[407838308,1772821862679,-151.0,0.00041096,120]
[407838309,1772821862689,-151.0,0.00041096,120]
[407838310,1772821862699,-151.0,0.00041096,120]
[407838311,1772821862709,-485.767834,0.00041096,120]
[407838312,1772821862718,-485.767834,0.00041096,120]
[407838313,1772821862728,-151.0,0.00041096,120]
[407838314,1772821862899,-151.0,0.00041096,120]
[407838315,1772821862911,-485.767834,0.00041096,120]
[407838316,1772821862921,-151.0,0.00041096,120]
[407838317,1772821862931,-485.767834,0.00041096,120]
[407838318,1772821862941,-151.0,0.00041096,120]
[407838319,1772821862950,-485.767834,0.00041096,120]
[407838320,1772821862960,-485.767834,0.00041096,120]
[407838321,1772821862970,-485.767834,0.00041096,120]
[407838322,1772821862981,-485.767834,0.00041096,120]
[407838323,1772821862990,-485.767834,0.00041096,120]
[407838324,1772821863000,-485.767834,0.00041096,120]
[407838325,1772821863009,-485.767834,0.00041096,120]
[407838326,1772821863019,-485.767834,0.00041096,120]
[407838327,1772821863029,-485.767834,0.00041096,120]
[407838328,1772821863039,-485.767834,0.00041096,120]
[407838329,1772821863049,-485.767834,0.00041096,120]
[407838330,1772821863059,-485.767834,0.00041096,120]
[407838331,1772821863069,-151.0,0.00041096,120]
[407838332,1772821863079,-151.0,0.00041096,120]
[407838333,1772821863088,-1110.699193,0.00041096,120]
[407838334,1772821863097,-1110.699193,0.00041096,120]
[407838335,1772821863106,-1110.699193,0.00041096,120]
[407838336,1772821863115,-1110.699193,0.00041096,120]
[407838337,1772821863125,-1110.699193,0.00041096,120]
[407838338,1772821863134,-1110.699193,0.00041096,120]
[407838339,1772821863144,-1110.699193,0.00041096,120]
[407838340,1772821863154,-1110.699193,0.00041096,120]
[407838341,1772821863164,-1110.699193,0.00041096,120]
[407838342,1772821863174,-1110.699193,0.00041096,120]
[407838343,1772821863185,-1110.699193,0.00041096,120]
[407838344,1772821863196,-1110.699193,0.00041096,120]
[407838345,1772821863205,-151.0,0.00041096,120]
[407838346,1772821863215,-1110.699193,0.00041096,120]
[407838347,1772821863225,-137.72096664,0.00041096,120]
[407838348,1772821863662,-247.76,0.00019077,2]
[407838349,1772821863672,-2000.0,0.0001939,2]
[407838350,1772821863683,-2000.0,0.0001939,2]
[407838351,1772821863694,-2000.0,0.0001939,2]
[407838352,1772821863704,-2000.0,0.0001939,2]
[407838353,1772821863714,-165.17,0.00019914,2]
[407838354,1772821863723,-165.17,0.00019943,2]
[407838355,1772821863735,-165.17,0.00019971,2]
[407838356,1772821863744,-500.0,0.0002,2]
[407838357,1772821863756,-2459.0,0.00034561,2]
[407838358,1772821863777,-2459.0,0.00037561,2]
[407838359,1772821863789,-2459.0,0.00040561,2]
[407838360,1772821863800,-13.27903336,0.00041096,120]
[407838361,1772821863810,-1110.699193,0.00041096,120]
[407838362,1772821863821,-275.93595297,0.00041096,120]
[407838363,1772821863832,-1110.699193,0.00041096,120]
[407838364,1772821863841,-1110.699193,0.00041096,120]
[407838365,1772821863849,-202.215456,0.00041096,120]
[407838366,1772821863859,-151.0,0.00041096,120]
[407838367,1772821863868,-151.0,0.00041096,120]
[407838368,1772821863878,-173.916247,0.00041096,120]
[407838369,1772821863888,-151.0,0.00041096,120]
[407838370,1772821863899,-151.0,0.00041096,120]
[407838371,1772821863909,-151.0,0.00041096,120]
[407838372,1772821863919,-151.0,0.00041096,120]
[407838373,1772821863929,-151.0,0.00041096,120]
[407838374,1772821863939,-151.0,0.00041096,120]
[407838375,1772821863949,-151.0,0.00041096,120]
[407838376,1772821863958,-164.374539,0.00041096,120]
[407838377,1772821863968,-151.0,0.00041096,120]
[407838378,1772821863977,-151.0,0.00041096,120]
[407838379,1772821863987,-151.0,0.00041096,120]
[407838380,1772821863997,-151.0,0.00041096,120]
[407838381,1772821864006,-151.0,0.00041096,120]
[407838382,1772821864016,-151.0,0.00041096,120]
[407838383,1772821864025,-151.0,0.00041096,120]
[407838384,1772821864034,-151.0,0.00041096,120]
[407838385,1772821864044,-151.0,0.00041096,120]
[407838386,1772821864053,-151.0,0.00041096,120]
[407838387,1772821864063,-151.0,0.00041096,120]
[407838388,1772821864074,-151.0,0.00041096,120]
[407838389,1772821864085,-184.157409,0.00041096,120]
[407838390,1772821864095,-151.0,0.00041096,120]
[407838391,1772821864105,-151.0,0.00041096,120]
[407838392,1772821864114,-151.0,0.00041096,120]
[407838393,1772821864124,-151.0,0.00041096,120]
[407838394,1772821864135,-297.384835,0.00041096,120]
[407838395,1772821864145,-151.0,0.00041096,120]
[407838396,1772821864154,-151.0,0.00041096,120]
[407838397,1772821864163,-151.0,0.00041096,120]
[407838398,1772821864172,-151.0,0.00041096,120]
[407838399,1772821864181,-369.518395,0.00041096,120]
[407838400,1772821864190,-284.725236,0.00041096,120]
[407838401,1772821864199,-369.518395,0.00041096,120]
[407838402,1772821864207,-284.725236,0.00041096,120]
[407838403,1772821864216,-284.725236,0.00041096,120]
[407838404,1772821864225,-369.518395,0.00041096,120]
[407838405,1772821864236,-284.725236,0.00041096,120]
[407838406,1772821864244,-369.518395,0.00041096,120]
[407838407,1772821864253,-284.725236,0.00041096,120]
[407838408,1772821864262,-369.518395,0.00041096,120]
[407838409,1772821864271,-284.725236,0.00041096,120]
[407838410,1772821864281,-369.518395,0.00041096,120]
[407838411,1772821864292,-284.725236,0.00041096,120]
[407838412,1772821864301,-369.518395,0.00041096,120]
[407838413,1772821864310,-284.725236,0.00041096,120]
[407838414,1772821864319,-369.518395,0.00041096,120]
[407838415,1772821864332,-284.725236,0.00041096,120]
[407838416,1772821864342,-284.725236,0.00041096,120]
[407838417,1772821864355,-369.518395,0.00041096,120]
[407838418,1772821864364,-284.725236,0.00041096,120]
[407838419,1772821864373,-369.518395,0.00041096,120]
[407838420,1772821864384,-284.725236,0.00041096,120]
[407838421,1772821864393,-369.518395,0.00041096,120]
[407838422,1772821864404,-369.518395,0.00041096,120]
[407838423,1772821864414,-284.725236,0.00041096,120]
[407838424,1772821864424,-284.725236,0.00041096,120]
[407838425,1772821864433,-369.518395,0.00041096,120]
[407838426,1772821864443,-284.725236,0.00041096,120]
[407838427,1772821864452,-284.725236,0.00041096,120]
[407838428,1772821864461,-369.518395,0.00041096,120]
[407838429,1772821864470,-369.518395,0.00041096,120]
[407838430,1772821864479,-369.518395,0.00041096,120]
[407838431,1772821864488,-175.010709,0.00041096,120]
[407838432,1772821864499,-175.010709,0.00041096,120]
[407838433,1772821864508,-175.010709,0.00041096,120]
[407838434,1772821864517,-151.0,0.00041096,120]
[407838435,1772821864527,-151.0,0.00041096,120]
[407838436,1772821864535,-175.010709,0.00041096,120]
[407838437,1772821864545,-151.0,0.00041096,120]
[407838438,1772821864555,-155.318667,0.00041096,120]
[407838439,1772821864564,-151.0,0.00041096,120]
[407838440,1772821864580,-170.945088,0.00041096,120]
[407838441,1772821864589,-175.010709,0.00041096,120]
[407838442,1772821864599,-175.010709,0.00041096,120]
[407838443,1772821864607,-175.010709,0.00041096,120]
[407838444,1772821864617,-175.010709,0.00041096,120]
[407838445,1772821864626,-151.0,0.00041096,120]
[407838446,1772821864635,-151.0,0.00041096,120]
[407838447,1772821864644,-151.0,0.00041096,120]
[407838448,1772821864653,-175.010709,0.00041096,120]
[407838449,1772821864666,-151.0,0.00041096,120]
[407838450,1772821864676,-151.0,0.00041096,120]
[407838451,1772821864685,-175.010709,0.00041096,120]
[407838452,1772821864695,-151.0,0.00041096,120]
[407838453,1772821864704,-175.010709,0.00041096,120]
[407838454,1772821864713,-175.010709,0.00041096,120]
[407838455,1772821864722,-151.0,0.00041096,120]
[407838456,1772821864731,-151.0,0.00041096,120]
[407838457,1772821864743,-175.010709,0.00041096,120]
[407838458,1772821864752,-151.0,0.00041096,120]
[407838459,1772821864762,-175.010709,0.00041096,120]
[407838460,1772821864772,-151.0,0.00041096,120]
[407838461,1772821864780,-175.010709,0.00041096,120]
[407838462,1772821864789,-175.010709,0.00041096,120]
[407838463,1772821864798,-151.0,0.00041096,120]
[407838464,1772821864807,-151.0,0.00041096,120]
[407838465,1772821864816,-257.792434,0.00041096,120]
[407838466,1772821864827,-213.941425,0.00041096,120]
[407838467,1772821864836,-257.792434,0.00041096,120]
[407838468,1772821864848,-257.792434,0.00041096,120]
[407838469,1772821864857,-257.792434,0.00041096,120]
[407838470,1772821864866,-257.792434,0.00041096,120]
[407838471,1772821864875,-257.792434,0.00041096,120]
[407838472,1772821864885,-465.570336,0.00041096,120]
[407838473,1772821864894,-113.79271897,0.00041096,120]
[407838474,1772821864927,-143.99971503,0.00041096,120]
[407838475,1772821864936,-462.85077962,0.00041096,120]
[407838476,1772821865023,-431.98343214,0.0001939,2]
[407838477,1772821865040,-1568.01656786,0.0001939,2]
[407838478,1772821865051,-2000.0,0.0001939,2]
[407838479,1772821865061,-160.0,0.000288,10]
[407838480,1772821865074,-2.71955638,0.00041096,120]
[407838481,1772821865086,-257.792434,0.00041096,120]
[407838482,1772821865098,-460.4375346,0.00041096,120]
[407838483,1772821865116,-5.1328014,0.00041096,120]
[407838484,1772821865126,-579.7356986,0.00041096,14]
[407838485,1772821865138,-1822.5929174,0.00041096,14]
[407838486,1772821865148,-465.570336,0.00041096,120]
[407838487,1772821865157,-2402.328616,0.00041096,14]
[407838488,1772821865168,-2402.328616,0.00041096,14]
[407838489,1772821865177,-257.792434,0.00041096,120]
[407838490,1772821865186,-465.570336,0.00041096,120]
[407838491,1772821865195,-2402.328616,0.00041096,14]
[407838492,1772821865204,-257.792434,0.00041096,120]
[407838493,1772821865214,-465.570336,0.00041096,120]
[407838494,1772821865223,-154.890951,0.00041096,120]
[407838495,1772821865233,-257.792434,0.00041096,120]
[407838496,1772821865243,-151.0,0.00041096,120]
[407838497,1772821865253,-465.570336,0.00041096,120]
[407838498,1772821865262,-2402.328616,0.00041096,14]
[407838499,1772821865272,-257.792434,0.00041096,120]
[407838500,1772821865281,-151.0,0.00041096,120]
[407838501,1772821865291,-465.570336,0.00041096,120]
[407838502,1772821865300,-2402.328616,0.00041096,14]
[407838503,1772821865311,-151.0,0.00041096,120]
[407838504,1772821865321,-2402.328616,0.00041096,14]
[407838505,1772821865332,-257.792434,0.00041096,120]
[407838506,1772821865342,-151.0,0.00041096,120]
[407838507,1772821865352,-465.570336,0.00041096,120]
[407838508,1772821865363,-2402.328616,0.00041096,14]
[407838509,1772821865374,-257.792434,0.00041096,120]
[407838510,1772821865385,-465.570336,0.00041096,120]
[407838511,1772821865396,-1054.60785,0.00041096,120]
[407838512,1772821865406,-257.792434,0.00041096,120]
[407838513,1772821865416,-151.0,0.00041096,120]
[407838514,1772821865426,-465.570336,0.00041096,120]
[407838515,1772821865436,-1054.60785,0.00041096,120]
[407838516,1772821865446,-2402.328616,0.00041096,14]
[407838517,1772821865455,-257.792434,0.00041096,120]
[407838518,1772821865466,-151.0,0.00041096,120]
[407838519,1772821865477,-465.570336,0.00041096,120]
[407838520,1772821865487,-1054.60785,0.00041096,120]
[407838521,1772821865497,-2402.328616,0.00041096,14]
[407838522,1772821865508,-174.50106,0.00041096,120]
[407838523,1772821865518,-151.0,0.00041096,120]
[407838524,1772821865528,-2402.328616,0.00041096,14]
[407838525,1772821865538,-1054.60785,0.00041096,120]
[407838526,1772821865548,-174.50106,0.00041096,120]
[407838527,1772821865557,-465.570336,0.00041096,120]
[407838528,1772821865567,-2402.328616,0.00041096,14]
[407838529,1772821865579,-164.081206,0.00041096,120]
[407838530,1772821865589,-174.50106,0.00041096,120]
[407838531,1772821865599,-465.570336,0.00041096,120]
[407838532,1772821865609,-1054.60785,0.00041096,120]
[407838533,1772821865619,-174.50106,0.00041096,120]
[407838534,1772821865629,-465.570336,0.00041096,120]
[407838535,1772821865639,-2402.328616,0.00041096,14]
[407838536,1772821865653,-1054.60785,0.00041096,120]
[407838537,1772821865663,-465.570336,0.00041096,120]
[407838538,1772821865673,-2402.328616,0.00041096,14]
[407838539,1772821865684,-1054.60785,0.00041096,120]
[407838540,1772821865694,-174.50106,0.00041096,120]
[407838541,1772821865704,-2402.328616,0.00041096,14]
[407838542,1772821865714,-681.64442686,0.00041096,120]
[407838543,1772821865728,-372.96342314,0.00041096,120]
[407838544,1772821865740,-174.50106,0.00041096,120]
[407838545,1772821865750,-2402.328616,0.00041096,14]
[407838546,1772821865759,-174.50106,0.00041096,120]
[407838547,1772821865941,-1054.60785,0.00041096,120]
[407838548,1772821865952,-151.0,0.00041096,120]
[407838549,1772821865963,-174.50106,0.00041096,120]
[407838550,1772821865972,-1054.60785,0.00041096,120]
[407838551,1772821865982,-151.0,0.00041096,120]
[407838552,1772821865992,-204.96233935,0.00041096,120]
[407838553,1772821866003,-500.0,0.00041096,120]
[407838554,1772821866271,509.0,0.0001342,2]
[407838555,1772821874458,-250.0,0.00013698,2]
[407838556,1772821889253,-600.0,0.00013976,2]
[407838557,1772821913576,535.0,0.0001342,2]
[407838563,1772822274249,535.0,0.0001342,2]
[407838564,1772822355968,-207.87,0.00014186,2]
[407838565,1772822356004,-200.37953886,0.00014199,2]
[407838566,1772822356030,-600.0,0.000142,2]
[407838567,1772822356057,-165.92423969,0.000142,3]
[407838568,1772822356083,-194.67195069,0.000142,3]
[407838569,1772822356108,-200.99982923,0.000142,3]
[407838570,1772822356132,-200.67753435,0.000142,3]
[407838571,1772822356156,-150.0,0.00014201,2]
[407838572,1772822356178,-300.0,0.00014201,2]
[407838573,1772822356205,-1804.35755566,0.00014202,2]
[407838574,1772822356227,-1456.58156082,0.00014202,2]
[407838575,1772822356250,-16121.97246191,0.00014202,2]
[407838576,1772822356276,-600.0,0.00014229,2]
[407838577,1772822356297,-600.0,0.00014229,2]
[407838578,1772822356319,-500.0,0.00014273,2]
[407838579,1772822356342,-500.0,0.00014273,2]
[407838580,1772822356363,-500.0,0.00014273,2]
[407838581,1772822356388,-500.0,0.00014273,2]
[407838582,1772822356413,-157.40983265,0.00014273,2]
[407838583,1772822356439,-1200.0,0.00014298,2]
[407838584,1772822356465,-500.0,0.00014299,2]
[407838585,1772822356490,-500.0,0.00014299,2]
[407838586,1772822356516,-600.0,0.00014299,2]
[407838587,1772822356541,-500.0,0.00014299,2]
[407838588,1772822356566,-500.0,0.00014299,2]
[407838589,1772822356591,-500.0,0.00014299,2]
[407838590,1772822356618,-500.0,0.00014299,2]
[407838591,1772822356646,-272.64991387,0.00014299,2]
[407838592,1772822356671,-500.0,0.00014299,2]
[407838593,1772822356694,-563.5211587,0.00014299,2]
[407838594,1772822356716,-500.0,0.00014299,2]
[407838595,1772822356739,-500.0,0.00014299,2]
[407838596,1772822357071,-289.6598124,0.00014299,2]
[407838597,1772822357097,-99544.32461117,0.000143,2]
[407838598,1772822372315,-520.0,0.0001342,2]
[407838602,1772822540351,-217.11483198,0.00013914,2]
[407838603,1772822547703,166.66,0.00013263,2]
[407838604,1772822547938,166.66,0.00013542,2]
[407838605,1772822548165,166.66,0.00013821,2]
[407838606,1772822550480,156.69,0.000139,2]
[407838607,1772822633554,535.0,0.0001342,2]
[407838608,1772822831114,-300.0,0.00014013,2]
[407838609,1772822831154,-904.48764174,0.00014013,2]
[407838610,1772822833589,9465.01,0.00013484,2]
[407838611,1772822833613,10000.01,0.00013484,2]
[407838612,1772822833634,10000.01,0.00013484,2]
[407838613,1772822833656,10000.01,0.00013484,2]
[407838614,1772822833682,10000.01,0.00013484,2]
[407838615,1772822833705,2572.35,0.00013484,2]
[407838617,1772822887776,500.0,0.00013448,2]
[407838619,1772822993664,535.0,0.0001342,2]
[407838620,1772822996280,4360.19,0.00013515,2]
[407838623,1772823031388,-268.19081318,0.00014013,2]
[407838624,1772823031398,-300.0,0.00014013,2]
[407838625,1772823031407,-15.84245177,0.00014013,2]
[407838626,1772823031418,-437.18897472,0.00014013,2]
[407838627,1772823031430,-746.96857351,0.00014013,2]
[407838628,1772823031440,-124.86291781,0.00014013,2]
[407838629,1772823031451,-571.34512714,0.00014013,2]
[407838630,1772823031460,-260.99380773,0.00014014,2]
[407838631,1772823031471,-294.40797712,0.00014014,2]
[407838632,1772823031492,-4444.59821515,0.00014014,2]
[407838633,1772823031501,-200.0,0.00014014,2]
[407838634,1772823031514,-5634.441,0.00014014,2]
[407838635,1772823031527,-383.87,0.00014014,2]
[407838636,1772823031536,-251.5508,0.00014099,2]
[407838637,1772823031545,-151.0,0.00014099,2]
[407838638,1772823031554,-166.66,0.000141,2]
[407838639,1772823031562,-335074.62709667,0.00014102,2]
[407838640,1772823031572,-2182.37961044,0.00014102,2]
[407838646,1772823031877,-1.01089132,0.00014102,2]
[407838660,1772823037505,-842.13133123,0.00014073,2]
[407838661,1772823037517,-500.0,0.00014073,2]
[407838662,1772823037612,-1256.40417357,0.00014073,2]
[407838673,1772823043389,-11911.239711,0.00014073,2]
[407838674,1772823043398,-10141.92073115,0.00014102,2]
[407838675,1772823043576,-437.72138658,0.00014102,2]
[407838682,1772823045362,-500.0,0.00014101,2]
[407838683,1772823045372,-202.76186868,0.00014101,2]
[407838684,1772823045382,-190.85493971,0.00014101,2]
[407838685,1772823045392,-500.0,0.00014101,2]
[407838686,1772823045402,-5311.68442361,0.00014102,2]
[407838687,1772823045416,-3959.39999991,0.00014102,2]
[407838688,1772823045428,-1072.9797794,0.00014102,2]
[407838689,1772823045528,-430.80233661,0.00014102,2]
[407838703,1772823055154,510.0,0.0001342,2]
[407838704,1772823271975,150.0,0.00013477,2]
[407838705,1772823341454,195.35,0.00013,2]
[407838706,1772823342348,195.35,0.00013,2]
[407838707,1772823352583,4970.6,0.00013374,2]
[407838708,1772823357043,536.83966,0.0001342,2]
[407838712,1772823448654,150.0,0.00013515,2]
[407838713,1772823502513,467.74,6.758e-05,2]
[407838714,1772823502724,467.74,7.113e-05,2]
[407838715,1772823503136,467.74,7.469e-05,2]
[407838716,1772823503360,467.74,7.825e-05,2]
[407838717,1772823503631,467.74,8.18e-05,2]
[407838718,1772823503839,467.74,8.536e-05,2]
[407838719,1772823504075,467.74,8.892e-05,2]
[407838720,1772823504278,467.74,9.247e-05,2]
[407838721,1772823504489,467.74,9.603e-05,2]
[407838722,1772823504910,467.74,9.959e-05,2]
[407838723,1772823505118,467.74,0.00010314,2]
[407838724,1772823505348,467.74,0.0001067,2]
[407838725,1772823505565,467.74,0.00011026,2]
[407838726,1772823505761,467.74,0.00011381,2]
[407838727,1772823505960,467.74,0.00011737,2]
[407838728,1772823506190,467.74,0.00012093,2]
[407838729,1772823506404,467.74,0.00012448,2]
[407838730,1772823506822,467.74,0.00012804,2]
[407838731,1772823507251,467.74,0.0001316,2]
[407838732,1772823507461,467.74,0.00013515,2]
[407838733,1772823550399,269.54,0.00013249,2]
[407838734,1772823561553,2246.63,0.00013,2]
[407838735,1772823561574,667.79,0.00013,2]
[407838736,1772823595437,10000.01,9.95e-05,2]
[407838737,1772823595458,10000.01,9.95e-05,2]
[407838738,1772823595480,10000.01,9.95e-05,2]
[407838739,1772823595503,10000.01,9.95e-05,2]
[407838740,1772823595525,10000.01,9.95e-05,2]
[407838741,1772823595548,10000.01,9.95e-05,2]
[407838742,1772823595570,10000.01,9.95e-05,2]
[407838743,1772823595593,746.89752288,9.95e-05,2]
[407838744,1772823602672,4057.45413928,8e-05,2]
[407838745,1772823606407,5195.65833784,0.00011,2]
[407838746,1772823606431,4270.44223169,0.00011,2]
[407838747,1772823610659,165.0,0.00013599,2]
[407838748,1772823616931,156.0,0.00013599,2]
[407838757,1772823626066,-154.0,0.00013599,2]
[407838758,1772823626627,513.0,0.0001342,2]
[407838759,1772823639490,150.58,0.00013162,2]
[407838760,1772823666901,156.0,0.00012619,2]
[407838761,1772823669647,154.0,0.00012619,2]
[407838762,1772823671652,-194.7148365,0.00013599,2]
[407838763,1772823727082,156.0,0.00012619,2]
[407838764,1772823735881,543.03293188,0.0001142,2]
[407838765,1772823736675,500.0,0.0001142,2]
[407838766,1772823740841,983.68961389,0.0001142,2]
[407838767,1772823744063,500.0,0.0001142,2]
[407838768,1772823744528,500.0,8e-05,2]
[407838769,1772823744680,500.0,0.0001142,2]
[407838770,1772823745228,500.0,8e-05,2]
[407838771,1772823747835,562.58734767,0.0001142,2]
[407838772,1772823747863,500.0,0.0001142,2]
[407838773,1772823748659,-519.0,0.0001342,2]
[407838774,1772823749616,500.0,0.0001142,2]
[407838775,1772823750076,500.0,0.0001142,2]
[407838776,1772823750809,500.0,0.0001142,2]
[407838777,1772823751368,556.72994091,8e-05,2]
[407838778,1772823751404,500.0,8e-05,2]
[407838779,1772823751863,543.25685673,8e-05,2]
[407838780,1772823805146,515.0,0.0001342,2]
[407838781,1772823817067,500.0,0.0001308,2]
[407838782,1772823887463,-156.0,0.00013512,2]
[407838783,1772823887493,-166.66,0.00013512,2]
[407838784,1772823887526,-200.0,0.00013699,2]
[407838785,1772823887556,-600.0,0.00013699,2]
[407838786,1772823887584,-263.0,0.00013699,2]
[407838787,1772823887613,-165.79721534,0.00013857,2]
[407838788,1772823887641,-150.58,0.00013894,2]
[407838789,1772823887667,-221.5726,0.00013913,2]
[407838790,1772823887694,-295.07650273,0.00013946,2]
[407838791,1772823887722,-300.0,0.00013956,2]
[407838792,1772823887968,-0.02,0.00013956,2]
[407838793,1772823890499,-0.04,0.00013956,2]
[407838794,1772823890696,-0.08,0.00013956,2]
[407838795,1772823893503,-0.16,0.00013956,2]
[407838796,1772823893617,-0.32,0.00013956,2]
[407838797,1772823896358,-0.64,0.00013956,2]
[407838798,1772823896480,-1.28,0.00013956,2]
[407838799,1772823899433,-200.0,0.0001315,2]
[407838800,1772823899553,-2.56,0.00013956,2]
[407838801,1772823902437,-300.0,0.00013955,2]
[407838802,1772823902470,-1200.0,0.00013955,2]
[407838803,1772823902600,-5.12,0.00013956,2]
[407838804,1772823906220,-10.24,0.00013956,2]
[407838805,1772823907216,156.0,0.000107,2]
[407838806,1772823908483,-20.48,0.00013956,2]
[407838807,1772823908660,-9060.89730757,0.00013956,2]
[407838808,1772823908703,-898.15269243,0.00013956,2]
[407838809,1772823908734,-260.71,0.00013956,2]
[407838810,1772823908770,-300.0,0.00013957,2]
[407838811,1772823908860,-7082.28461514,0.00013957,2]
[407838812,1772823911557,-2917.70538486,0.00013957,2]
[407838813,1772823911586,-150.99,0.00013957,2]
[407838814,1772823911617,-978.79,0.00013957,2]
[407838815,1772823911645,-516.46,0.00013957,2]
[407838816,1772823911674,-150.99,0.00013957,2]
[407838817,1772823911780,-570.13923028,0.00013957,2]
[407838818,1772823914511,-570.15923028,0.00013957,2]
[407838819,1772823914539,-8859.69153944,0.00013957,2]
[407838822,1772823976506,156.0,0.00012617,2]
[407838823,1772823996694,-513.0,0.0001342,2]
[407838824,1772823999300,-299.99,0.00013957,2]
[407838825,1772823999325,-166.66,0.00013958,2]
[407838826,1772823999351,-4.13889652,0.00013995,2]
[407838827,1772824007549,476.27487329,0.0001,2]
[407838828,1772824026828,156.0,0.00012615,2]
[407838829,1772824027301,-576.0,0.0001342,2]
[407838830,1772824036000,500.0,0.0001142,2]